bitfinex-derivatives/quotes_BTCF0:USTF0_20241217
["timestamp","ask_amount","ask_price","bid_price","bid_amount"]
[1734401051744,0.102198,106360.0,106350.0,0.45799136]
[1734401051945,0.18660297,106360.0,106350.0,0.40787969]
[1734401052746,0.08440497,106360.0,106350.0,0.45799136]
[1734401052968,0.08440497,106360.0,106350.0,0.70835641]
[1734401053154,0.23960649,106370.0,106360.0,0.046998]
[1734401053353,0.18949482,106370.0,106360.0,0.407798]
[1734401053542,0.23960649,106370.0,106360.0,0.407798]
[1734401055455,0.14250082,106370.0,106360.0,0.45790967]
[1734401055644,0.05810451,106370.0,106360.0,0.45790967]
[1734401055843,0.00010451,106370.0,106360.0,0.45790967]
[1734401059669,0.00010451,106370.0,106360.0,0.50802134]
[1734401062055,0.00010451,106370.0,106360.0,0.51759821]
[1734401065566,0.00010451,106370.0,106360.0,0.64856326]
[1734401068957,0.00010451,106370.0,106360.0,0.59845159]
[1734401071950,0.00010451,106370.0,106360.0,0.41737487]
[1734401072160,0.00010451,106370.0,106360.0,0.46748654]
[1734401075566,0.00010451,106370.0,106360.0,0.41737487]
[1734401075567,0.05021618,106370.0,106360.0,0.41737487]
[1734401075765,0.10741618,106370.0,106360.0,0.41737487]
[1734401077176,0.05730451,106370.0,106360.0,0.46748654]
[1734401079674,0.05730451,106370.0,106360.0,0.82828654]
[1734401080558,0.14171306,106370.0,106360.0,0.82828654]
[1734401082373,0.05730451,106370.0,106360.0,0.82828654]
[1734401083174,0.14179273,106370.0,106360.0,0.82828654]
[1734401084565,0.05730451,106370.0,106360.0,0.82828654]
[1734401084768,0.14179273,106370.0,106360.0,0.82828654]
[1734401084985,0.05730451,106370.0,106360.0,0.82828654]
[1734401085666,0.14179273,106370.0,106360.0,0.82828654]
[1734401085864,0.14179273,106370.0,106360.0,0.10668654]
[1734401086075,0.14179273,106370.0,106360.0,0.82828654]
[1734401089969,0.05730451,106370.0,106360.0,0.82828654]
[1734401090715,0.14182927,106370.0,106360.0,0.82828654]
[1734401093079,0.08462927,106370.0,106360.0,0.87839821]
[1734401093577,0.08462927,106370.0,106360.0,1.00936326]
[1734401094577,0.08462927,106370.0,106360.0,0.95925159]
[1734401095366,0.08462927,106370.0,106360.0,1.00936326]
[1734401095771,0.00010451,106370.0,106360.0,1.00936326]
[1734401096577,0.0846275,106370.0,106360.0,1.00936326]
[1734401096784,1.2e-07,106380.0,106360.0,1.00936326]
[1734401096975,0.0005,106390.0,106380.0,0.046989]
[1734401097175,0.0005,106390.0,106380.0,0.56391234]
[1734401097683,0.16161167,106410.0,106380.0,0.69487739]
[1734401097975,0.1115,106410.0,106400.0,0.40778]
[1734401098280,0.16169311,106410.0,106400.0,0.40778]
[1734401101005,0.20866911,106410.0,106400.0,0.40778]
[1734401101191,0.25878078,106410.0,106400.0,0.40778]
[1734401101398,0.04698,106400.0,106390.0,0.407783]
[1734401101578,0.15729167,106400.0,106390.0,0.407783]
[1734401104608,0.10718,106400.0,106390.0,0.407783]
[1734401104911,0.10768,106400.0,106390.0,0.45789467]
[1734401105894,0.10768,106400.0,106390.0,0.407783]
[1734401108579,0.11687334,106400.0,106390.0,0.407783]
[1734401111384,0.16698501,106400.0,106390.0,0.407783]
[1734401112190,0.16698501,106400.0,106390.0,0.768583]
[1734401113380,0.13534579,106400.0,106390.0,0.768583]
[1734401113698,0.06595245,106400.0,106390.0,0.81869467]
[1734401116284,0.06595245,106400.0,106390.0,0.768583]
[1734401116484,0.11606412,106400.0,106390.0,0.768583]
[1734401117784,0.11556412,106400.0,106390.0,0.768583]
[1734401122204,0.16567579,106400.0,106390.0,0.768583]
[1734401122387,0.22327579,106400.0,106390.0,0.768583]
[1734401124204,0.12305245,106400.0,106390.0,0.768583]
[1734401124391,0.22327579,106400.0,106390.0,0.768583]
[1734401126307,0.17316412,106400.0,106390.0,0.768583]
[1734401128900,0.17316412,106400.0,106390.0,0.7216]
[1734401130701,0.22327579,106400.0,106390.0,0.7216]
[1734401132795,0.22327579,106400.0,106390.0,0.768585]
[1734401132796,0.11556412,106400.0,106390.0,0.768585]
[1734401133296,0.06545245,106400.0,106390.0,0.768585]
[1734401136212,0.11556412,106400.0,106390.0,0.768585]
[1734401139228,0.11556412,106400.0,106390.0,0.407785]
[1734401140528,0.06545245,106400.0,106390.0,0.407785]
[1734401140732,0.11556412,106400.0,106390.0,0.407785]
[1734401144733,0.16567579,106400.0,106390.0,0.407785]
[1734401144931,0.11556412,106400.0,106390.0,0.407785]
[1734401147333,0.16567579,106400.0,106390.0,0.3608]
[1734401148032,0.11556412,106400.0,106390.0,0.3608]
[1734401148236,0.16567579,106400.0,106390.0,0.3608]
[1734401150341,0.16567579,106400.0,106380.0,0.464187]
[1734401150536,0.05011167,106390.0,106380.0,0.464187]
[1734401150734,0.09709167,106400.0,106380.0,0.87459867]
[1734401150933,0.09709167,106400.0,106390.0,0.3608]
[1734401152944,0.1162728,106400.0,106390.0,0.3608]
[1734401156840,0.22897152,106400.0,106390.0,0.3608]
[1734401163848,0.22897152,106400.0,106380.0,0.103387]
[1734401164047,0.22897152,106400.0,106390.0,0.3608]
[1734401164256,0.27908319,106400.0,106390.0,0.3608]
[1734401166946,0.22897152,106400.0,106390.0,0.3608]
[1734401169552,0.22897152,106400.0,106390.0,0.046985]
[1734401169553,0.17885985,106400.0,106390.0,0.046985]
[1734401169848,0.17885985,106400.0,106390.0,0.407785]
[1734401170043,0.22897152,106400.0,106390.0,0.407785]
[1734401170244,0.22897152,106400.0,106390.0,0.046985]
[1734401170964,0.22897152,106400.0,106390.0,0.407785]
[1734401176468,0.16281039,106400.0,106390.0,0.407785]
[1734401176673,0.11269872,106400.0,106390.0,0.407785]
[1734401176880,0.16281039,106400.0,106390.0,0.407785]
[1734401177767,0.20979039,106400.0,106390.0,0.407785]
[1734401177974,0.25990206,106400.0,106390.0,0.046985]
[1734401178178,0.20979039,106400.0,106390.0,0.046985]
[1734401178378,0.25990206,106400.0,106390.0,0.046985]
[1734401178577,0.25990206,106400.0,106390.0,0.407785]
[1734401178578,0.20979039,106400.0,106390.0,0.407785]
[1734401181697,0.11269872,106400.0,106390.0,0.407785]
[1734401184966,0.11269872,106400.0,106390.0,0.41391364]
[1734401185567,0.16281039,106400.0,106390.0,0.41391364]
[1734401187167,0.11269872,106400.0,106390.0,0.41391364]
[1734401191761,0.11269872,106400.0,106390.0,0.46402531]
[1734401191960,0.29927206,106410.0,106390.0,0.46402531]
[1734401192260,0.29927206,106410.0,106400.0,0.04698]
[1734401192261,0.48985696,106410.0,106400.0,0.04698]
[1734401192853,0.49035696,106410.0,106400.0,0.04698]
[1734401193452,0.34988373,106410.0,106400.0,0.04698]
[1734401193657,0.23426452,106410.0,106400.0,0.09709167]
[1734401193862,0.28387619,106410.0,106400.0,0.04698]
[1734401194159,0.28387619,106410.0,106400.0,0.43784423]
[1734401194363,0.28387619,106410.0,106400.0,0.40778]
[1734401194572,0.28387619,106410.0,106400.0,0.04698]
[1734401194963,0.12276452,106410.0,106400.0,0.09709167]
[1734401195165,0.12276452,106410.0,106400.0,0.15549167]
[1734401195460,0.12276452,106410.0,106400.0,0.51629167]
[1734401196159,0.17287619,106410.0,106400.0,0.04698]
[1734401196402,0.33455219,106410.0,106400.0,0.04698]
[1734401197065,0.28757619,106410.0,106400.0,0.04698]
[1734401197266,0.17487747,106410.0,106400.0,0.40778]
[1734401197564,0.28757619,106410.0,106400.0,0.40778]
[1734401198482,0.33455219,106410.0,106400.0,0.04698]
[1734401198662,0.74546386,106410.0,106390.0,0.3608]
[1734401198869,0.09709167,106400.0,106390.0,0.407784]
[1734401199358,0.09709167,106400.0,106390.0,0.046984]
[1734401200066,0.09709167,106400.0,106390.0,0.407784]
[1734401200264,0.09709167,106400.0,106390.0,0.046984]
[1734401201165,0.09709167,106400.0,106390.0,0.407784]
[1734401202455,0.33455319,106410.0,106390.0,0.45789567]
[1734401203969,0.69535319,106410.0,106390.0,0.407784]
[1734401204270,0.05011167,106400.0,106390.0,0.407784]
[1734401206783,0.33455319,106410.0,106390.0,0.45789567]
[1734401207821,0.05011167,106400.0,106390.0,0.407784]
[1734401207979,0.05011167,106400.0,106390.0,0.768584]
[1734401208178,0.28444152,106410.0,106400.0,0.04698]
[1734401208368,0.28444152,106410.0,106400.0,0.45789167]
[1734401208676,0.22185447,106410.0,106400.0,0.40778]
[1734401209577,0.1247658,106410.0,106400.0,0.45789167]
[1734401209775,0.1247658,106410.0,106400.0,0.51589167]
[1734401209968,0.1242658,106410.0,106400.0,0.51589167]
[1734401210270,0.1242658,106410.0,106400.0,0.46578]
[1734401210571,0.1242658,106410.0,106400.0,0.51589167]
[1734401211374,0.17437747,106410.0,106400.0,0.46578]
[1734401211574,0.22135347,106410.0,106400.0,0.46578]
[1734401211767,0.22135347,106410.0,106400.0,0.04698]
[1734401212476,0.22135347,106410.0,106400.0,0.40778]
[1734401213575,0.22135347,106410.0,106400.0,0.04698]
[1734401213779,0.22135347,106410.0,106400.0,0.40778]
[1734401214476,0.22135347,106410.0,106400.0,0.04698]
[1734401214679,0.22135347,106410.0,106400.0,0.40778]
[1734401216069,0.33405219,106410.0,106400.0,0.40778]
[1734401219575,0.30579953,106410.0,106400.0,0.40778]
[1734401222381,0.30579953,106410.0,106400.0,0.3608]
[1734401222883,0.41849825,106410.0,106400.0,0.3608]
[1734401223269,0.41849825,106410.0,106400.0,0.40778]
[1734401225384,0.09401186,106410.0,106400.0,0.50800334]
[1734401225590,0.09401186,106410.0,106400.0,0.69886839]
[1734401225886,0.0845275,106410.0,106400.0,0.64875672]
[1734401226592,8.144e-05,106410.0,106400.0,0.64875672]
[1734401231489,8.144e-05,106410.0,106400.0,0.59864505]
[1734401231676,8.144e-05,106410.0,106400.0,0.64875672]
[1734401233189,8.144e-05,106410.0,106400.0,0.65614901]
[1734401234777,8.144e-05,106410.0,106400.0,0.70626068]
[1734401236190,8.144e-05,106410.0,106400.0,0.60603734]
[1734401236494,0.20394606,106430.0,106420.0,0.046971]
[1734401236695,0.20394606,106430.0,106420.0,0.45788267]
[1734401237083,0.14444606,106430.0,106420.0,0.45788267]
[1734401237395,0.06010843,106430.0,106420.0,0.45788267]
[1734401237599,0.06010843,106430.0,106420.0,0.51838267]
[1734401239892,0.06060843,106430.0,106420.0,0.51838267]
[1734401240679,0.00060843,106430.0,106420.0,1.06025939]
[1734401241489,0.00060843,106430.0,106420.0,1.06756132]
[1734401242283,0.00060843,106430.0,106420.0,0.92036698]
[1734401242485,0.00060843,106430.0,106420.0,0.97047865]
[1734401242697,0.00060843,106430.0,106420.0,1.01744965]
[1734401243287,0.00060843,106430.0,106420.0,1.06756132]
[1734401246291,0.00060843,106430.0,106420.0,0.96733798]
[1734401246600,0.00060843,106430.0,106420.0,1.06756132]
[1734401247886,0.00060843,106430.0,106420.0,1.01744965]
[1734401248282,0.00060843,106430.0,106420.0,0.96733798]
[1734401248603,0.00060843,106430.0,106420.0,1.01744965]
[1734401250990,0.05890843,106430.0,106420.0,1.01744965]
[1734401253597,0.05890843,106430.0,106420.0,1.06756132]
[1734401253799,0.05890843,106430.0,106420.0,1.40176022]
[1734401256698,0.00060843,106430.0,106420.0,1.06766056]
[1734401257003,0.114,106450.0,106440.0,0.046963]
[1734401257204,0.114,106450.0,106440.0,0.45787467]
[1734401258001,0.11410686,106450.0,106440.0,0.45787467]
[1734401258191,0.11410686,106450.0,106440.0,0.407763]
[1734401259397,0.11410686,106450.0,106440.0,0.45787467]
[1734401259592,0.11410686,106450.0,106440.0,0.407763]
[1734401259792,0.11410686,106450.0,106440.0,0.45787467]
[1734401260104,0.11410686,106450.0,106440.0,0.407763]
[1734401260509,0.11410686,106450.0,106440.0,0.58883972]
[1734401260696,0.16421853,106450.0,106440.0,0.53872805]
[1734401262009,0.16421853,106450.0,106440.0,0.54602841]
[1734401262303,0.11410686,106450.0,106440.0,0.59614008]
[1734401262698,0.11410686,106450.0,106440.0,0.54602841]
[1734401262888,0.11410686,106450.0,106440.0,0.59614008]
[1734401263102,0.11410686,106450.0,106440.0,0.54602841]
[1734401263405,0.11410686,106450.0,106440.0,0.59614008]
[1734401265013,0.11460686,106450.0,106440.0,0.59614008]
[1734401265524,0.11460686,106450.0,106440.0,0.64625175]
[1734401265697,0.11460686,106450.0,106440.0,0.70465175]
[1734401265905,0.11410686,106450.0,106440.0,0.65454008]
[1734401267107,0.11460686,106450.0,106440.0,0.65454008]
[1734401267903,0.11410686,106450.0,106440.0,0.65454008]
[1734401268303,0.05680686,106450.0,106440.0,0.65454008]
[1734401268610,0.05680686,106450.0,106440.0,0.70465175]
[1734401268817,0.05680686,106450.0,106440.0,1.03895999]
[1734401269002,0.05730686,106450.0,106440.0,1.03895999]
[1734401269610,0.05730686,106450.0,106440.0,0.98884832]
[1734401269906,0.05730686,106450.0,106440.0,1.03895999]
[1734401270517,0.00060686,106450.0,106440.0,1.03895999]
[1734401271812,0.00060686,106450.0,106440.0,0.88033665]
[1734401272110,0.046963,106440.0,106430.0,0.11441147]
[1734401272315,0.046967,106430.0,106420.0,9.924e-05]
[1734401272516,0.54221059,106430.0,106420.0,9.924e-05]
[1734401273021,0.57057739,106430.0,106420.0,0.00059924]
[1734401273409,0.65488537,106430.0,106420.0,0.00059924]
[1734401273610,0.57057739,106430.0,106420.0,0.00059924]
[1734401273912,0.57057739,106430.0,106420.0,9.924e-05]
[1734401274221,0.70497106,106430.0,106420.0,9.924e-05]
[1734401274454,0.52046572,106430.0,106420.0,9.924e-05]
[1734401274640,0.65486252,106430.0,106420.0,9.924e-05]
[1734401275006,0.65486252,106430.0,106420.0,0.00059924]
[1734401275217,0.5421638,106430.0,106420.0,0.00059924]
[1734401276026,0.5421638,106430.0,106400.0,0.36859624]
[1734401276027,0.046976,106410.0,106400.0,0.36859624]
[1734401276225,0.09708767,106410.0,106390.0,0.407784]
[1734401276617,0.407776,106410.0,106390.0,0.45789567]
[1734401276919,0.45788767,106410.0,106390.0,0.45789567]
[1734401277311,0.09708767,106410.0,106390.0,0.4655082]
[1734401278654,0.09708767,106410.0,106400.0,0.3608]
[1734401279021,0.046976,106410.0,106400.0,0.40778]
[1734401279418,0.583472,106420.0,106400.0,0.45789167]
[1734401279626,0.164672,106420.0,106400.0,0.41091167]
[1734401279819,0.164672,106420.0,106410.0,0.407776]
[1734401280125,0.164672,106420.0,106410.0,0.463576]
[1734401280523,0.21478367,106420.0,106410.0,0.463576]
[1734401280742,0.164672,106420.0,106410.0,0.463576]
[1734401281716,0.046968,106430.0,106420.0,0.046971]
[1734401281917,0.246224,106440.0,106430.0,0.046967]
[1734401282224,0.10671167,106440.0,106430.0,0.407767]
[1734401282523,0.0566,106440.0,106430.0,0.45787867]
[1734401283620,0.26710189,106450.0,106440.0,0.046963]
[1734401283914,0.26710189,106450.0,106440.0,0.407763]
[1734401284116,0.13272922,106450.0,106440.0,0.407763]
[1734401284318,0.20887911,106450.0,106440.0,0.407763]
[1734401284631,0.12461811,106450.0,106440.0,0.407763]
[1734401286826,0.20084772,106450.0,106430.0,0.3608]
[1734401287027,0.56164772,106450.0,106430.0,0.407766]
[1734401292232,0.20084772,106450.0,106430.0,0.407766]
[1734401294223,0.046963,106440.0,106430.0,0.407766]
[1734401300135,0.12411911,106450.0,106430.0,0.407766]
[1734401300527,0.20838011,106450.0,106430.0,0.41569296]
[1734401301035,0.046963,106440.0,106430.0,0.3608]
[1734401301342,0.046963,106440.0,106430.0,0.407767]
[1734401303133,0.107363,106440.0,106430.0,0.407767]
[1734401303427,0.18359261,106440.0,106430.0,0.3608]
[1734401305535,0.19168747,106440.0,106430.0,0.3608]
[1734401307930,0.16549891,106440.0,106430.0,0.3608]
[1734401308342,0.24975991,106440.0,106430.0,0.3608]
[1734401310243,0.24975991,106440.0,106430.0,0.4185]
[1734401313559,0.36245863,106440.0,106430.0,0.4185]
[1734401314058,0.24975991,106440.0,106430.0,0.4185]
[1734401314564,0.31241758,106440.0,106430.0,0.4185]
[1734401315750,0.36245863,106440.0,106430.0,0.4185]
[1734401319751,0.32823868,106440.0,106430.0,0.33344773]
[1734401320250,0.34664804,106440.0,106430.0,0.33344773]
[1734401322560,0.046967,106430.0,106420.0,0.0562]
[1734401322770,0.29418123,106430.0,106420.0,0.0562]
[1734401323053,0.13144146,106430.0,106420.0,0.51351205]
[1734401323574,0.046967,106430.0,106420.0,0.51351205]
[1734401324152,0.046967,106430.0,106420.0,0.51401205]
[1734401325054,0.046967,106430.0,106420.0,0.51351205]
[1734401325764,0.18148251,106430.0,106420.0,0.463471]
[1734401325961,0.18148251,106430.0,106420.0,0.463971]
[1734401326955,0.13144146,106430.0,106420.0,0.463471]
[1734401327157,0.18148251,106430.0,106420.0,0.463471]
[1734401327961,0.18148251,106430.0,106420.0,0.463971]
[1734401328159,0.13144146,106430.0,106420.0,0.51401205]
[1734401328966,0.13144146,106430.0,106420.0,0.51351205]
[1734401330066,0.13144146,106430.0,106420.0,0.51401205]
[1734401333668,0.13144146,106430.0,106420.0,0.463971]
[1734401333863,0.18148251,106430.0,106420.0,0.463971]
[1734401334165,0.046967,106430.0,106420.0,0.463971]
[1734401334570,0.13144146,106430.0,106420.0,0.463971]
[1734401336760,0.18148251,106430.0,106420.0,0.463971]
[1734401340673,0.13144146,106430.0,106420.0,0.463971]
[1734401344076,0.13144146,106430.0,106420.0,0.463471]
[1734401346092,0.046967,106430.0,106420.0,0.463471]
[1734401346376,0.13144146,106430.0,106420.0,0.463471]
[1734401349078,0.18148251,106430.0,106420.0,0.3608]
[1734401349273,0.34948123,106430.0,106420.0,0.3608]
[1734401349665,0.34948123,106430.0,106410.0,0.53248603]
[1734401349871,0.13451551,106420.0,106410.0,0.53248603]
[1734401350071,0.13451551,106420.0,106410.0,0.53198603]
[1734401350271,0.05004105,106420.0,106410.0,0.47358603]
[1734401350670,0.13451551,106420.0,106410.0,0.47358603]
[1734401351073,0.13451551,106420.0,106410.0,0.47408603]
[1734401351283,0.05004105,106420.0,106410.0,0.47408603]
[1734401351875,0.05004105,106420.0,106410.0,0.57147848]
[1734401352073,0.05004105,106420.0,106410.0,0.57097848]
[1734401352074,0.13451551,106420.0,106410.0,0.57097848]
[1734401352279,0.13451551,106420.0,106410.0,0.47358603]
[1734401352481,0.08447446,106420.0,106410.0,0.47358603]
[1734401352781,0.13451551,106420.0,106410.0,0.47358603]
[1734401353083,0.13451551,106420.0,106410.0,0.47408603]
[1734401353378,0.13451551,106420.0,106410.0,0.52412708]
[1734401353684,0.05004105,106420.0,106410.0,0.52412708]
[1734401353887,0.34948123,106430.0,106410.0,0.52412708]
[1734401354182,0.08447446,106420.0,106410.0,0.52362708]
[1734401354575,0.34948123,106430.0,106410.0,0.52362708]
[1734401354970,0.34948123,106430.0,106410.0,0.52412708]
[1734401355586,0.34948123,106430.0,106420.0,0.3608]
[1734401355805,0.23678251,106430.0,106420.0,0.3608]
[1734401356483,0.34948123,106430.0,106410.0,0.52362708]
[1734401356988,0.34948123,106430.0,106410.0,0.52412708]
[1734401358085,0.23678251,106430.0,106410.0,0.52362708]
[1734401359090,0.23678251,106430.0,106410.0,0.52412708]
[1734401359287,0.34948123,106430.0,106410.0,0.52412708]
[1734401359688,0.23678251,106430.0,106410.0,0.52412708]
[1734401360085,0.34948123,106430.0,106410.0,0.52412708]
[1734401360589,0.23678251,106430.0,106410.0,0.52412708]
[1734401362380,0.34948123,106430.0,106410.0,0.52412708]
[1734401362591,0.34948123,106430.0,106410.0,0.47408603]
[1734401362592,0.05004105,106420.0,106410.0,0.47408603]
[1734401363281,0.34948123,106430.0,106410.0,0.47408603]
[1734401363679,0.34948123,106430.0,106410.0,0.52412708]
[1734401364191,0.05004105,106420.0,106410.0,0.47408603]
[1734401364586,0.18148651,106420.0,106410.0,0.47408603]
[1734401364781,0.09701205,106420.0,106410.0,0.47408603]
[1734401364981,0.18148651,106420.0,106410.0,0.47408603]
[1734401365485,0.09701205,106420.0,106410.0,0.47408603]
[1734401369692,0.046971,106420.0,106410.0,0.47408603]
[1734401371993,0.06584815,106420.0,106410.0,0.47408603]
[1734401373509,0.15032261,106420.0,106410.0,0.47408603]
[1734401373686,0.06584815,106420.0,106410.0,0.47408603]
[1734401375098,0.06584815,106420.0,106410.0,0.52412708]
[1734401376092,0.06584815,106420.0,106410.0,0.52362708]
[1734401377293,0.15032261,106420.0,106410.0,0.52362708]
[1734401379111,0.20036366,106420.0,106410.0,0.47358603]
[1734401379295,0.15032261,106420.0,106410.0,0.47358603]
[1734401379891,0.15032261,106420.0,106410.0,0.465475]
[1734401380494,0.20878057,106420.0,106410.0,0.465475]
[1734401387702,0.37152034,106420.0,106410.0,0.0577]
[1734401387909,0.34194588,106420.0,106410.0,0.0577]
[1734401388897,0.32306873,106420.0,106410.0,0.0577]
[1734401389304,0.32306873,106420.0,106400.0,0.42544497]
[1734401389513,0.18148846,106410.0,106400.0,0.42544497]
[1734401390109,0.18148846,106410.0,106400.0,0.42494497]
[1734401391210,0.18148846,106410.0,106400.0,0.42544497]
[1734401391809,0.18148846,106410.0,106400.0,0.06464497]
[1734401392211,0.18148846,106410.0,106400.0,0.06414497]
[1734401392910,0.18148846,106410.0,106400.0,0.42494497]
[1734401393108,0.18148846,106410.0,106400.0,0.06464497]
[1734401394317,0.18148846,106410.0,106400.0,0.42494497]
[1734401394807,0.18148846,106410.0,106400.0,0.06414497]
[1734401395205,0.18148846,106410.0,106400.0,0.06464497]
[1734401395507,0.18148846,106410.0,106400.0,0.3613]
[1734401395717,0.14067354,106440.0,106400.0,0.87102315]
[1734401395914,0.14067354,106440.0,106430.0,0.81860805]
[1734401396214,0.05014791,106450.0,106440.0,0.046963]
[1734401396409,0.05014791,106450.0,106440.0,0.407763]
[1734401396713,0.05014791,106450.0,106440.0,0.96226124]
[1734401397554,0.05852408,106450.0,106440.0,0.96226124]
[1734401401220,0.46628208,106450.0,106440.0,0.60146124]
[1734401401423,0.10548208,106450.0,106440.0,0.60146124]
[1734401401807,1.60548208,106450.0,106440.0,0.26603538]
[1734401402218,0.10548208,106450.0,106440.0,0.26603538]
[1734401402522,0.10548208,106450.0,106440.0,0.046963]
[1734401402908,0.10548208,106450.0,106440.0,0.38238886]
[1734401403312,0.10548208,106450.0,106440.0,0.26603538]
[1734401404021,0.10548208,106450.0,106440.0,0.26496977]
[1734401404222,0.10548208,106450.0,106440.0,0.32563748]
[1734401404926,0.15552313,106450.0,106440.0,0.27867448]
[1734401405135,0.51682313,106450.0,106440.0,0.27867448]
[1734401405428,0.81682313,106450.0,106440.0,0.27867448]
[1734401405726,0.81682313,106450.0,106440.0,0.22295809]
[1734401405911,0.046963,106440.0,106430.0,0.27867448]
[1734401406111,0.61468615,106440.0,106430.0,0.27867448]
[1734401406312,0.046967,106430.0,106420.0,0.27867448]
[1734401406509,0.2034491,106430.0,106420.0,0.27867448]
[1734401408921,0.2603491,106430.0,106420.0,0.27867448]
[1734401409523,0.6211491,106430.0,106420.0,0.27867448]
[1734401409736,0.046971,106420.0,106410.0,0.97490034]
[1734401410054,0.1470531,106420.0,106410.0,0.85224873]
[1734401410237,0.1470531,106420.0,106410.0,0.85274873]
[1734401411030,0.5078531,106420.0,106410.0,0.49194873]
[1734401411241,0.5078531,106420.0,106410.0,0.49144873]
[1734401411628,0.5078531,106420.0,106410.0,0.27867448]
[1734401412137,0.5078531,106420.0,106410.0,0.27917448]
[1734401413240,0.5078531,106420.0,106410.0,0.27867448]
[1734401413939,0.4608821,106420.0,106410.0,0.27867448]
[1734401414143,0.5078531,106420.0,106410.0,0.27917448]
[1734401414345,0.5078531,106420.0,106410.0,0.0005]
[1734401414639,0.1470531,106420.0,106410.0,0.0005]
[1734401414845,0.1470531,106420.0,106410.0,0.27917448]
[1734401415345,0.1470531,106420.0,106410.0,0.27867448]
[1734401415737,0.046976,106410.0,106400.0,0.39077448]
[1734401415934,0.09701705,106410.0,106400.0,0.44752586]
[1734401416440,0.09701705,106410.0,106400.0,0.80832586]
[1734401416664,0.09701705,106410.0,106400.0,1.02279592]
[1734401416844,0.09701705,106410.0,106400.0,0.66199592]
[1734401417148,0.09701705,106410.0,106400.0,1.02279592]
[1734401417647,0.09701705,106410.0,106400.0,1.02198085]
[1734401418384,0.046976,106410.0,106400.0,1.02198085]
[1734401418537,0.09701705,106410.0,106400.0,1.02198085]
[1734401420248,0.09701705,106410.0,106400.0,1.02248085]
[1734401423336,0.10565139,106410.0,106400.0,1.02248085]
[1734401424844,0.10565139,106410.0,106400.0,0.68705499]
[1734401425949,0.10565139,106410.0,106400.0,0.96609416]
[1734401426133,0.10565139,106410.0,106400.0,1.02248085]
[1734401426940,0.10565139,106410.0,106400.0,1.02188268]
[1734401428344,0.12436181,106410.0,106400.0,1.02188268]
[1734401428544,0.07432076,106410.0,106400.0,1.06886268]
[1734401428759,0.12436181,106410.0,106400.0,1.06886268]
[1734401431651,0.12436181,106410.0,106400.0,0.85580586]
[1734401431885,0.12436181,106410.0,106400.0,1.06934106]
[1734401432958,0.12296673,106430.0,106410.0,0.046972]
[1734401433251,0.06656673,106430.0,106420.0,0.27939443]
[1734401433440,0.06656673,106430.0,106420.0,0.39649443]
[1734401433441,0.11660778,106430.0,106420.0,0.39649443]
[1734401433746,0.11660778,106430.0,106420.0,0.75729443]
[1734401433973,0.01959873,106430.0,106420.0,1.12387311]
[1734401434142,0.0005,106430.0,106420.0,1.12387311]
[1734401434350,0.0005,106430.0,106420.0,0.8384883]
[1734401434542,0.0005,106430.0,106420.0,0.78844725]
[1734401434752,0.0005,106430.0,106420.0,1.17977742]
[1734401437447,0.0005,106430.0,106420.0,0.78844725]
[1734401439049,0.0005,106430.0,106420.0,1.17977742]
[1734401439448,0.0005,106430.0,106420.0,0.79727857]
[1734401440452,0.0005,106430.0,106420.0,1.13212669]
[1734401441062,0.0005,106430.0,106420.0,1.12860608]
[1734401441261,0.05054105,106430.0,106420.0,1.07856503]
[1734401441456,0.0005,106430.0,106420.0,1.12860608]
[1734401442762,0.0005,106430.0,106420.0,1.07856503]
[1734401445658,0.0005,106430.0,106420.0,1.07864684]
[1734401447157,0.0005,106430.0,106420.0,1.07863045]
[1734401450758,0.0005,106430.0,106420.0,1.1286715]
[1734401451558,0.01845601,106440.0,106420.0,1.17871255]
[1734401451764,0.01845601,106440.0,106430.0,0.79238269]
[1734401451969,0.01845601,106440.0,106430.0,1.0616627]
[1734401452361,0.00010686,106450.0,106440.0,0.046963]
[1734401452568,0.00010686,106450.0,106440.0,0.96239606]
[1734401452770,0.00010686,106450.0,106440.0,1.12243502]
[1734401452955,0.00010686,106450.0,106440.0,0.78798406]
[1734401453366,0.00010686,106450.0,106440.0,1.12226373]
[1734401453566,0.00010686,106450.0,106440.0,1.07222268]
[1734401453765,0.00010686,106450.0,106440.0,1.12226373]
[1734401454354,0.00010686,106450.0,106440.0,1.17230478]
[1734401454557,0.11120819,106460.0,106450.0,0.09699905]
[1734401454870,0.11120819,106460.0,106450.0,0.7363331]
[1734401455168,0.11120819,106460.0,106450.0,0.94329019]
[1734401455469,0.46650778,106470.0,106460.0,0.046954]
[1734401455773,6.936e-05,106470.0,106460.0,0.45779505]
[1734401455965,6.936e-05,106470.0,106460.0,0.57929505]
[1734401456270,0.05011041,106470.0,106460.0,1.01382162]
[1734401456855,6.936e-05,106470.0,106460.0,1.01382162]
[1734401457468,6.936e-05,106470.0,106460.0,1.06386267]
[1734401457673,6.936e-05,106470.0,106460.0,1.01382162]
[1734401457972,6.936e-05,106470.0,106460.0,1.34810129]
[1734401458369,0.05011041,106470.0,106460.0,1.01382162]
[1734401458670,0.05011041,106470.0,106460.0,1.34810129]
[1734401458880,0.05011041,106470.0,106460.0,1.01382162]
[1734401459068,6.936e-05,106470.0,106460.0,1.06386267]
[1734401459265,6.936e-05,106470.0,106460.0,1.01382162]
[1734401460773,0.05011041,106470.0,106460.0,1.01382162]
[1734401462164,0.05011041,106470.0,106460.0,1.02238229]
[1734401462871,0.05011041,106470.0,106460.0,0.74384824]
[1734401463266,0.05011041,106470.0,106460.0,1.02220176]
[1734401463860,0.05011041,106470.0,106460.0,1.07812791]
[1734401464470,0.05011041,106470.0,106460.0,1.35644788]
[1734401464673,0.05011041,106470.0,106460.0,1.07812791]
[1734401465272,0.05061041,106470.0,106460.0,1.07812791]
[1734401465477,0.00056936,106470.0,106460.0,1.35651982]
[1734401465967,0.00056936,106470.0,106460.0,1.02224015]
[1734401466172,0.05061041,106470.0,106460.0,1.07812791]
[1734401466371,0.05061041,106470.0,106460.0,1.02224705]
[1734401466562,0.05061041,106470.0,106460.0,1.02221275]
[1734401466772,0.05061041,106470.0,106460.0,1.4065295]
[1734401467069,0.00056936,106470.0,106460.0,1.07225993]
[1734401467291,0.00056936,106470.0,106460.0,1.40482619]
[1734401467467,0.00056936,106470.0,106460.0,1.07054652]
[1734401468177,0.00056936,106470.0,106460.0,0.8904448]
[1734401468178,0.21985941,106470.0,106460.0,0.8904448]
[1734401468369,0.16981836,106470.0,106460.0,0.8904448]
[1734401468571,0.21985941,106470.0,106460.0,0.8904448]
[1734401472980,0.21985941,106470.0,106450.0,0.75379199]
[1734401472981,1.28071251,106470.0,106450.0,0.27849902]
[1734401473171,0.5078361,106460.0,106450.0,0.16718511]
[1734401473371,0.5078361,106460.0,106440.0,0.09058141]
[1734401473572,0.046967,106430.0,106420.0,0.5399]
[1734401473776,0.046967,106430.0,106420.0,0.58994105]